[Event "European Women Rapid-ch 2023"]
[Site "Monaco"]
[Date "2024.01.14"]
[Round "11.16"]
[White "Charkhalashvili, Inga"]
[Black "Zhukova, Natalia"]
[Result "1/2-1/2"]
[ECO "D43"]
[WhiteElo "2239"]
[BlackElo "2301"]
[Annotator "ChessBase"]
[PlyCount "71"]
[EventDate "2023.12.19"]
[EventType "swiss"]
[EventCountry "MNC"]
[SourceTitle "playchess.com"]
[Source "ChessBase"]
[SourceQuality "1"]
[TimeControl "900+10"]

1. d4 {[%emt 0:00:01]} Nf6 {[%emt 0:00:02]} 2. c4 {[%emt 0:00:02]} e6 {[%emt 0:00:02]} 3. Nf3 {[%emt 0:00:04]} d5 {[%emt 0:00:04]} 4. Nc3 {[%emt 0:00:16]} dxc4 {[%emt 0:00:10]} 5. Qa4+ {[%emt 0:00:26]} c6 {[%emt 0:00:34]} 6. Qxc4 {[%emt 0:00:03]} b5 {[%emt 0:00:01]} 7. Qb3 {[%emt 0:00:03]} a6 {[%emt 0:00:16]} 8. Bg5 {[%emt 0:00:10]} Nbd7 {[%emt 0:00:17]} 9. e3 {[%emt 0:00:19]} h6 {[%emt 0:01:09]} 10. Bh4 {[%emt 0:00:05]} Qa5 {[%emt 0:02:56]} 11. Be2 {[%emt 0:00:28]} c5 {[%emt 0:05:12]} 12. O-O {[%emt 0:00:21]} Bb7 {[%emt 0:00:27]} 13. a3 {[%emt 0:03:45]} Be7 {[%emt 0:00:24]} 14. Ne5 {[%emt 0:00:37]} Nxe5 {[%emt 0:00:52]} 15. dxe5 {[%emt 0:00:02]} Nd5 {[%emt 0:00:04]} 16. Bxe7 {[%emt 0:00:34]} Nxe7 {[%emt 0:00:03]} 17. Rfd1 {[%emt 0:01:15]} Qc7 {[%emt 0:00:04]} 18. Bxb5+ {[%emt 0:00:16]} Nc6 {[%emt 0:01:21]} 19. Bxc6+ {[%emt 0:01:18]} Bxc6 {[%emt 0:00:06]} 20. Rd6 {[%emt 0:00:35]} O-O {[%emt 0:00:03]} 21. Qc2 {[%emt 0:00:20]} Rab8 {[%emt 0:00:33]} 22. Rad1 {[%emt 0:01:49]} Rb6 {[%emt 0:00:25]} 23. Ne2 {[%emt 0:02:04]} Bd5 {[%emt 0:00:47]} 24. b4 {[%emt 0:00:38]} Rxd6 {[%emt 0:02:27]} 25. exd6 {[%emt 0:00:02]} Qxd6 {[%emt 0:00:21]} 26. bxc5 {[%emt 0:00:21]} Qe5 {[%emt 0:00:20]} 27. Qc3 {[%emt 0:01:58]} Qg5 {[%emt 0:00:10]} 28. Nf4 {[%emt 0:00:21]} Bf3 {[%emt 0:00:18]} 29. Rd6 {[%emt 0:01:16]} e5 {[%emt 0:00:14]} 30. h4 {[%emt 0:00:08]} Qf5 {[%emt 0:00:01]} 31. Nd3 {[%emt 0:00:17]} Be4 {[%emt 0:00:25]} 32. Nxe5 {[%emt 0:00:18]} Rb8 {[%emt 0:00:06]} 33. Rb6 {[%emt 0:00:09]} Rd8 {[%emt 0:00:04]} 34. Rd6 {[%emt 0:00:05]} Rb8 {[%emt 0:00:01]} 35. Rb6 {[%emt 0:00:14]} Rd8 {[%emt 0:00:00]} 36. Rd6 {[%emt 0:00:15]} 1/2-1/2

[Event "European Women Rapid-ch 2023"]
[Site "Monaco"]
[Date "2024.01.14"]
[Round "11.17"]
[White "Schulze, Lara"]
[Black "Gaprindashvili, Nona"]
[Result "1-0"]
[ECO "B22"]
[WhiteElo "2285"]
[BlackElo "2243"]
[Annotator "ChessBase"]
[PlyCount "44"]
[EventDate "2023.12.19"]
[EventType "swiss"]
[EventCountry "MNC"]
[SourceTitle "playchess.com"]
[Source "ChessBase"]
[SourceQuality "1"]
[TimeControl "900+10"]

1. e4 {[%emt 0:00:02]} g6 {[%emt 0:00:03]} 2. d4 {[%emt 0:00:05]} c6 {[%emt 0:00:02]} 3. c4 {[%emt 0:00:09]} d5 {[%emt 0:00:01]} 4. cxd5 {[%emt 0:00:03]} cxd5 {[%emt 0:00:01]} 5. e5 {[%emt 0:00:02]} Nh6 {[%emt 0:00:13]} 6. Nc3 {[%emt 0:00:20]} Nc6 {[%emt 0:00:25]} 7. h3 {[%emt 0:00:59]} Nf5 {[%emt 0:00:06]} 8. Nf3 {[%emt 0:00:07]} h5 {[%emt 0:00:06]} 9. a3 {[%emt 0:00:21]} Bh6 {[%emt 0:00:14]} 10. Bxh6 {[%emt 0:00:45]} Rxh6 {[%emt 0:00:01]} 11. Qd2 {[%emt 0:01:32]} Kf8 {[%emt 0:00:06]} 12. Be2 {[%emt 0:01:20]} Kg7 {[%emt 0:00:07]} 13. O-O {[%emt 0:00:05]} f6 {[%emt 0:00:46]} 14. Rad1 {[%emt 0:01:10]} Be6 {[%emt 0:00:19]} 15. Rfe1 {[%emt 0:01:57]} Bf7 {[%emt 0:05:07]} 16. Bb5 {[%emt 0:01:22]} Rc8 {[%emt 0:00:22]} 17. Qf4 {[%emt 0:01:45]} Rh8 {[%emt 0:01:10]} 18. Re2 {[%emt 0:01:19]} Na5 {[%emt 0:01:47]} 19. Bd3 {[%emt 0:00:39]} Nh6 {[%emt 0:00:37]} 20. Rde1 {[%emt 0:00:20]} Nc6 {[%emt 0:02:17]} 21. Qg3 {[%emt 0:00:48]} Re8 {[%emt 0:01:57]} 22. e6 {[%emt 0:00:10]} Rh8 {[%emt 0:00:25]} 1-0

[Event "European Women Rapid-ch 2023"]
[Site "Monaco"]
[Date "2024.01.14"]
[Round "11.18"]
[White "Movsesian, Julia"]
[Black "Piddubna, Bozhena"]
[Result "0-1"]
[ECO "C45"]
[WhiteElo "2257"]
[BlackElo "2035"]
[Annotator "ChessBase"]
[PlyCount "65"]
[EventDate "2023.12.19"]
[EventType "swiss"]
[EventCountry "MNC"]
[SourceTitle "playchess.com"]
[Source "ChessBase"]
[SourceQuality "1"]
[TimeControl "900+10"]

1. e4 {[%emt 0:00:01]} e5 {[%emt 0:00:01]} 2. Nf3 {[%emt 0:00:03]} Nc6 {[%emt 0:00:01]} 3. d4 {[%emt 0:00:09]} exd4 {[%emt 0:00:02]} 4. Nxd4 {[%emt 0:00:01]} Nf6 {[%emt 0:00:02]} 5. Nxc6 {[%emt 0:00:10]} bxc6 {[%emt 0:00:02]} 6. e5 {[%emt 0:00:01]} Qe7 {[%emt 0:00:01]} 7. Qe2 {[%emt 0:00:01]} Nd5 {[%emt 0:00:01]} 8. h4 {[%emt 0:00:01]} a5 {[%emt 0:00:38]} 9. c4 {[%emt 0:00:26]} Nb6 {[%emt 0:00:24]} 10. h5 {[%emt 0:03:58]} h6 {[%emt 0:01:09]} 11. Nc3 {[%emt 0:00:20]} Qe6 {[%emt 0:00:07]} 12. Be3 {[%emt 0:01:03]} Qxe5 {[%emt 0:01:04]} 13. Rh4 {[%emt 0:00:01]} Bb4 {[%emt 0:00:29]} 14. Bd4 {[%emt 0:02:16]} Qxe2+ {[%emt 0:01:18]} 15. Bxe2 {[%emt 0:00:01]} O-O {[%emt 0:01:22]} 16. O-O-O {[%emt 0:00:31]} c5 {[%emt 0:01:07]} 17. Be3 {[%emt 0:00:46]} Bxc3 {[%emt 0:00:10]} 18. bxc3 {[%emt 0:00:01]} d6 {[%emt 0:00:01]} 19. g4 {[%emt 0:00:30]} Na4 {[%emt 0:00:43]} 20. Kc2 {[%emt 0:01:29]} Rb8 {[%emt 0:00:09]} 21. Bc1 {[%emt 0:00:01]} Re8 {[%emt 0:00:39]} 22. Bf3 {[%emt 0:00:07]} Bb7 {[%emt 0:00:13]} 23. Bxb7 {[%emt 0:01:30]} Rxb7 {[%emt 0:00:01]} 24. Rhh1 {[%emt 0:02:05]} Kh7 {[%emt 0:02:04]} 25. f4 {[%emt 0:00:19]} Rbb8 {[%emt 0:01:55]} 26. Rhe1 {[%emt 0:00:27]} Nb6 {[%emt 0:00:16]} 27. Kd3 {[%emt 0:00:34]} Nd7 {[%emt 0:00:13]} 28. Rg1 {[%emt 0:00:34]} Re7 {[%emt 0:00:45]} 29. g5 {[%emt 0:00:22]} Rbe8 {[%emt 0:01:02]} 30. Rg2 {[%emt 0:00:02]} hxg5 {[%emt 0:00:24]} 31. Rdg1 {[%emt 0:01:37]} Re1 {[%emt 0:00:01]} 32. fxg5 {[%emt 0:00:09]} Ne5+ {[%emt 0:00:16]} 33. Kd2 {[%emt 0:00:21]} 0-1

[Event "European Women Rapid-ch 2023"]
[Site "Monaco"]
[Date "2024.01.14"]
[Round "11.19"]
[White "De Seroux, Camille"]
[Black "Cramling, Pia"]
[Result "0-1"]
[ECO "A00"]
[WhiteElo "2075"]
[BlackElo "2437"]
[Annotator "RC"]
[PlyCount "91"]
[EventDate "2023.12.19"]
[EventType "swiss"]
[EventCountry "MNC"]
[SourceTitle "playchess.com"]
[Source "ChessBase"]
[SourceQuality "1"]
[TimeControl "900+10"]

1. Nc3 {[%emt 0:00:02]} d5 {[%emt 0:00:18]} 2. Nf3 {[%emt 0:00:06]} Nf6 {[%emt 0:00:16]} 3. d3 {[%emt 0:00:07]} g6 {[%emt 0:00:14]} 4. g3 {[%emt 0:00:17]} Bg7 {[%emt 0:00:06]} 5. Bg2 {[%emt 0:00:03]} b6 {[%emt 0:00:12]} 6. e4 {[%emt 0:02:12]} dxe4 {[%emt 0:00:06]} 7. Ng5 {[%emt 0:00:36]} Bb7 {[%emt 0:00:05]} 8. Ngxe4 {[%emt 0:01:44]} Nxe4 {[%emt 0:00:04]} 9. Nxe4 {[%emt 0:00:36]} Qc8 {[%emt 0:00:20]} 10. O-O {[%emt 0:02:07]} O-O {[%emt 0:00:02]} 11. Re1 {[%emt 0:00:41]} c5 {[%emt 0:00:19]} 12. Bg5 {[%emt 0:01:22]} Nc6 {[%emt 0:00:37]} 13. c3 {[%emt 0:01:30]} Qd7 {[%emt 0:00:11]} 14. Qe2 {[%emt 0:00:18]} Rfe8 {[%emt 0:01:31]} 15. Rad1 {[%emt 0:00:08]} f5 {[%emt 0:00:54]} 16. Nd2 {[%emt 0:00:34]} h6 {[%emt 0:00:19]} 17. Be3 {[%emt 0:00:11]} e5 {[%emt 0:00:03]} 18. a4 {[%emt 0:00:33]} f4 {[%emt 0:00:34]} 19. Nc4 {[%emt 0:00:28]} fxe3 {[%emt 0:00:07]} 20. fxe3 {[%emt 0:00:09]} Rad8 {[%emt 0:00:20]} 21. e4 {[%emt 0:00:39]} Rf8 {[%emt 0:00:20]} 22. Ne3 {[%emt 0:00:04]} Ne7 {[%emt 0:00:10]} 23. h4 {[%emt 0:00:04]} h5 {[%emt 0:00:17]} 24. Kh2 {[%emt 0:00:12]} Bc8 {[%emt 0:00:31]} 25. Nc4 {[%emt 0:01:02]} Qxa4 {[%emt 0:02:13]} 26. Qe3 {[%emt 0:00:20]} Bg4 {[%emt 0:00:21]} 27. Ra1 {[%emt 0:00:24]} Qd7 {[%emt 0:00:01]} 28. Qg5 {[%emt 0:00:17]} Bf6 {[%emt 0:00:11]} 29. Qh6 {[%emt 0:00:07]} Rf7 {[%emt 0:00:30]} 30. Rf1 {[%emt 0:00:43]} Bg7 {[%emt 0:00:30]} 31. Qg5 {[%emt 0:00:12]} Rxf1 {[%emt 0:00:05]} 32. Rxf1 {[%emt 0:00:03]} Qe6 {[%emt 0:00:23]} 33. Ne3 {[%emt 0:00:21]} Rf8 {[%emt 0:00:58]} 34. Ra1 {[%emt 0:00:05]} a5 {[%emt 0:00:15]} 35. b4 {[%emt 0:00:11]} cxb4 {[%emt 0:00:49]} 36. cxb4 {[%emt 0:00:02]} Kh7 {[%emt 0:00:32]} 37. Nd5 {[%emt 0:01:25]} Nxd5 {[%emt 0:00:14]} 38. exd5 {[%emt 0:00:02]} Qd6 {[%emt 0:00:09]} 39. Qe3 {[%emt 0:00:53]} Qxb4 {[%emt 0:00:09]} 40. Rc1 {[%emt 0:00:10]} Qd4 {[%emt 0:00:22]} 41. Qg5 {[%emt 0:00:12]} Rf2 {[%emt 0:01:26]} 42. Rc7 {[%emt 0:00:13]} Qxd5 {[%emt 0:00:38]} 43. Rxg7+ {[%emt 0:00:09]} Kxg7 {[%emt 0:00:01]} 44. Qe7+ {[%emt 0:00:01]} Qf7 {[%emt 0:00:27]} 45. Qxe5+ {[%emt 0:00:03]} Kh7 {[%emt 0:00:03]} 46. Qe4 {[%emt 0:01:12]} 0-1

[Event "European Women Rapid-ch 2023"]
[Site "Monaco"]
[Date "2024.01.14"]
[Round "11.20"]
[White "Hunt, Harriet V"]
[Black "Kubicka, Anna"]
[Result "1-0"]
[ECO "B50"]
[WhiteElo "2306"]
[BlackElo "2278"]
[Annotator "ChessBase"]
[PlyCount "87"]
[EventDate "2023.12.19"]
[EventType "swiss"]
[EventCountry "MNC"]
[SourceTitle "playchess.com"]
[Source "ChessBase"]
[SourceQuality "1"]
[TimeControl "900+10"]

1. e4 {[%emt 0:00:01]} c5 {[%emt 0:00:02]} 2. Nf3 {[%emt 0:00:04]} d6 {[%emt 0:00:01]} 3. c3 {[%emt 0:00:04]} Nf6 {[%emt 0:00:03]} 4. h3 {[%emt 0:00:02]} Nc6 {[%emt 0:00:15]} 5. Bd3 {[%emt 0:00:05]} g6 {[%emt 0:00:03]} 6. O-O {[%emt 0:00:03]} Bg7 {[%emt 0:00:01]} 7. Bc2 {[%emt 0:00:03]} O-O {[%emt 0:00:03]} 8. Re1 {[%emt 0:00:02]} e5 {[%emt 0:00:07]} 9. d3 {[%emt 0:00:11]} h6 {[%emt 0:00:07]} 10. a3 {[%emt 0:00:19]} a5 {[%emt 0:00:12]} 11. a4 {[%emt 0:00:04]} Re8 {[%emt 0:00:15]} 12. Na3 {[%emt 0:00:21]} d5 {[%emt 0:00:07]} 13. exd5 {[%emt 0:01:25]} Nxd5 {[%emt 0:00:07]} 14. Nc4 {[%emt 0:00:16]} Bf5 {[%emt 0:01:10]} 15. Nfd2 {[%emt 0:02:27]} b6 {[%emt 0:03:04]} 16. Qf3 {[%emt 0:00:28]} Be6 {[%emt 0:00:49]} 17. Bb3 {[%emt 0:02:16]} Rc8 {[%emt 0:03:27]} 18. Ne4 {[%emt 0:00:31]} Rc7 {[%emt 0:00:01]} 19. Bd2 {[%emt 0:00:36]} Rd7 {[%emt 0:00:50]} 20. Rad1 {[%emt 0:00:45]} Qc7 {[%emt 0:01:35]} 21. Bc1 {[%emt 0:00:58]} f5 {[%emt 0:00:33]} 22. Ng3 {[%emt 0:00:04]} Bf7 {[%emt 0:00:15]} 23. h4 {[%emt 0:01:29]} h5 {[%emt 0:00:23]} 24. Bg5 {[%emt 0:00:08]} Nf6 {[%emt 0:02:36]} 25. Nf1 {[%emt 0:01:30]} e4 {[%emt 0:00:51]} 26. dxe4 {[%emt 0:00:26]} Rxd1 {[%emt 0:00:03]} 27. Rxd1 {[%emt 0:00:09]} Nxe4 {[%emt 0:00:14]} 28. Bf4 {[%emt 0:00:20]} Ne5 {[%emt 0:00:32]} 29. Nxe5 {[%emt 0:00:21]} Bxb3 {[%emt 0:00:35]} 30. Rd7 {[%emt 0:00:56]} Qc8 {[%emt 0:00:16]} 31. Qd3 {[%emt 0:00:57]} Be6 {[%emt 0:01:04]} 32. Ra7 {[%emt 0:00:24]} Rd8 {[%emt 0:00:36]} 33. Qe3 {[%emt 0:01:05]} Bxe5 {[%emt 0:00:07]} 34. Bxe5 {[%emt 0:00:03]} Rd7 {[%emt 0:00:02]} 35. Rxd7 {[%emt 0:00:13]} Qxd7 {[%emt 0:00:02]} 36. f3 {[%emt 0:00:14]} Qd5 {[%emt 0:00:14]} 37. Qf4 {[%emt 0:00:11]} Nf2 {[%emt 0:00:27]} 38. Kxf2 {[%emt 0:00:04]} Qd1 {[%emt 0:00:05]} 39. Qh6 {[%emt 0:00:17]} Kf7 {[%emt 0:00:01]} 40. Qg7+ {[%emt 0:00:02]} Ke8 {[%emt 0:00:01]} 41. Qxg6+ {[%emt 0:00:03]} Kd7 {[%emt 0:00:01]} 42. Qg7+ {[%emt 0:00:02]} Ke8 {[%emt 0:00:15]} 43. Bf6 {[%emt 0:00:19]} Bf7 {[%emt 0:00:01]} 44. Qh8+ {[%emt 0:00:05]} 1-0

[Event "European Women Rapid-ch 2023"]
[Site "Monaco"]
[Date "2024.01.14"]
[Round "11.21"]
[White "Radeva, Viktoria"]
[Black "Hrebenshchykova, Yelyzaveta"]
[Result "0-1"]
[ECO "C55"]
[WhiteElo "2325"]
[BlackElo "2275"]
[Annotator "ChessBase"]
[PlyCount "60"]
[EventDate "2023.12.19"]
[EventType "swiss"]
[EventCountry "MNC"]
[SourceTitle "playchess.com"]
[Source "ChessBase"]
[SourceQuality "1"]
[TimeControl "900+10"]

1. e4 {[%emt 0:00:01]} e5 {[%emt 0:00:01]} 2. Nf3 {[%emt 0:00:01]} Nc6 {[%emt 0:00:01]} 3. Bc4 {[%emt 0:00:02]} Nf6 {[%emt 0:00:02]} 4. d3 {[%emt 0:00:00]} Be7 {[%emt 0:00:01]} 5. O-O {[%emt 0:00:09]} O-O {[%emt 0:00:03]} 6. a4 {[%emt 0:00:05]} d5 {[%emt 0:00:58]} 7. exd5 {[%emt 0:00:03]} Nxd5 {[%emt 0:00:01]} 8. h3 {[%emt 0:00:29]} Kh8 {[%emt 0:02:12]} 9. Re1 {[%emt 0:00:08]} f6 {[%emt 0:00:03]} 10. a5 {[%emt 0:01:39]} b6 {[%emt 0:01:06]} 11. axb6 {[%emt 0:00:30]} Nxb6 {[%emt 0:00:08]} 12. Bb3 {[%emt 0:00:23]} a5 {[%emt 0:00:45]} 13. Nc3 {[%emt 0:00:17]} Bb7 {[%emt 0:00:32]} 14. Be3 {[%emt 0:01:22]} Bb4 {[%emt 0:00:32]} 15. Nh4 {[%emt 0:01:22]} Qe8 {[%emt 0:03:55]} 16. Qg4 {[%emt 0:00:23]} a4 {[%emt 0:00:46]} 17. Ba2 {[%emt 0:05:48]} a3 {[%emt 0:00:04]} 18. Bc1 {[%emt 0:01:44]} Nd4 {[%emt 0:01:20]} 19. Nf5 {[%emt 0:00:30]} Qg6 {[%emt 0:00:02]} 20. Qxg6 {[%emt 0:01:25]} hxg6 {[%emt 0:00:01]} 21. Ne3 {[%emt 0:00:01]} Na4 {[%emt 0:03:27]} 22. Nxa4 {[%emt 0:00:01]} Bxe1 {[%emt 0:00:02]} 23. Kf1 {[%emt 0:01:05]} Rxa4 {[%emt 0:00:25]} 24. Kxe1 {[%emt 0:00:29]} axb2 {[%emt 0:00:07]} 25. Bxb2 {[%emt 0:00:01]} Rfa8 {[%emt 0:00:02]} 26. Bf7 {[%emt 0:00:31]} Rxa1+ {[%emt 0:00:03]} 27. Bxa1 {[%emt 0:00:01]} Rxa1+ {[%emt 0:00:01]} 28. Kd2 {[%emt 0:00:01]} Kh7 {[%emt 0:00:12]} 29. c3 {[%emt 0:00:31]} Nf5 {[%emt 0:00:08]} 30. Ng4 {[%emt 0:00:13]} Bxg2 {[%emt 0:00:14]} 0-1

[Event "European Women Rapid-ch 2023"]
[Site "Monaco"]
[Date "2024.01.14"]
[Round "11.22"]
[White "Papp, Petra"]
[Black "Rudzinska, Michalina"]
[Result "0-1"]
[ECO "B15"]
[WhiteElo "2267"]
[BlackElo "2241"]
[Annotator "ChessBase"]
[PlyCount "90"]
[EventDate "2023.12.19"]
[EventType "swiss"]
[EventCountry "MNC"]
[SourceTitle "playchess.com"]
[Source "ChessBase"]
[SourceQuality "1"]
[TimeControl "900+10"]

1. e4 {[%emt 0:00:02]} c6 {[%emt 0:00:01]} 2. d4 {[%emt 0:00:02]} d5 {[%emt 0:00:02]} 3. Nd2 {[%emt 0:00:01]} dxe4 {[%emt 0:00:02]} 4. Nxe4 {[%emt 0:00:02]} Nf6 {[%emt 0:00:02]} 5. Nxf6+ {[%emt 0:00:05]} exf6 {[%emt 0:00:02]} 6. Bd3 {[%emt 0:00:27]} Qxd4 {[%emt 0:01:08]} 7. Nf3 {[%emt 0:00:12]} Qd8 {[%emt 0:00:55]} 8. O-O {[%emt 0:00:21]} Be7 {[%emt 0:00:24]} 9. Re1 {[%emt 0:00:26]} O-O {[%emt 0:00:13]} 10. Bf4 {[%emt 0:00:58]} c5 {[%emt 0:01:38]} 11. Qe2 {[%emt 0:01:30]} Nc6 {[%emt 0:00:07]} 12. Rad1 {[%emt 0:02:01]} Qb6 {[%emt 0:00:19]} 13. Nd2 {[%emt 0:03:35]} Be6 {[%emt 0:01:11]} 14. Qh5 {[%emt 0:00:58]} g6 {[%emt 0:00:17]} 15. Qh6 {[%emt 0:00:13]} Nb4 {[%emt 0:04:14]} 16. Nc4 {[%emt 0:01:13]} Qa6 {[%emt 0:00:28]} 17. b3 {[%emt 0:01:37]} b5 {[%emt 0:00:30]} 18. Ne3 {[%emt 0:00:59]} Nxd3 {[%emt 0:00:17]} 19. Rxd3 {[%emt 0:00:02]} Rfd8 {[%emt 0:00:22]} 20. Qh4 {[%emt 0:03:14]} Rxd3 {[%emt 0:00:40]} 21. cxd3 {[%emt 0:00:01]} Qa5 {[%emt 0:01:34]} 22. f3 {[%emt 0:00:31]} Rd8 {[%emt 0:00:49]} 23. Qg3 {[%emt 0:00:17]} Rxd3 {[%emt 0:00:14]} 24. h4 {[%emt 0:00:04]} c4 {[%emt 0:00:48]} 25. bxc4 {[%emt 0:00:16]} bxc4 {[%emt 0:00:03]} 26. Rb1 {[%emt 0:00:13]} Rd8 {[%emt 0:00:49]} 27. Bc7 {[%emt 0:00:09]} Qxa2 {[%emt 0:00:24]} 28. Re1 {[%emt 0:00:09]} Rc8 {[%emt 0:00:18]} 29. h5 {[%emt 0:00:05]} Bb4 {[%emt 0:00:11]} 30. Rd1 {[%emt 0:00:14]} Qb3 {[%emt 0:00:36]} 31. Bf4 {[%emt 0:00:11]} Bc5 {[%emt 0:00:06]} 32. Re1 {[%emt 0:00:02]} c3 {[%emt 0:00:26]} 33. Kh2 {[%emt 0:00:03]} c2 {[%emt 0:00:17]} 34. hxg6 {[%emt 0:00:02]} hxg6 {[%emt 0:00:06]} 35. Ng4 {[%emt 0:00:08]} Bd4 {[%emt 0:00:55]} 36. Qh4 {[%emt 0:00:15]} Bxg4 {[%emt 0:00:11]} 37. Qxg4 {[%emt 0:00:06]} Qc3 {[%emt 0:00:20]} 38. Qg3 {[%emt 0:00:31]} Be5 {[%emt 0:00:07]} 39. Rc1 {[%emt 0:00:13]} Qb2 {[%emt 0:00:17]} 40. Bxe5 {[%emt 0:00:10]} Qxc1 {[%emt 0:00:07]} 41. Qh3 {[%emt 0:00:09]} Rc6 {[%emt 0:00:16]} 42. Qd7 {[%emt 0:00:05]} Qh6+ {[%emt 0:00:04]} 43. Kg3 {[%emt 0:00:02]} Qg5+ {[%emt 0:00:02]} 44. Kf2 {[%emt 0:00:14]} c1=Q {[%emt 0:00:14]} 45. g4 {[%emt 0:00:20]} Qcd2+ {[%emt 0:00:04]} 0-1

[Event "European Women Rapid-ch 2023"]
[Site "Monaco"]
[Date "2024.01.14"]
[Round "11.23"]
[White "Unuk, Laura"]
[Black "Collado Barbas, Laura"]
[Result "1-0"]
[ECO "D00"]
[WhiteElo "2346"]
[BlackElo "2037"]
[Annotator "ChessBase"]
[PlyCount "60"]
[EventDate "2023.12.19"]
[EventType "swiss"]
[EventCountry "MNC"]
[SourceTitle "playchess.com"]
[Source "ChessBase"]
[SourceQuality "1"]
[TimeControl "900+10"]

1. d4 {[%emt 0:00:01]} d5 {[%emt 0:00:03]} 2. Bf4 {[%emt 0:00:02]} e6 {[%emt 0:00:23]} 3. e3 {[%emt 0:00:03]} c5 {[%emt 0:00:02]} 4. c3 {[%emt 0:00:16]} Nd7 {[%emt 0:00:41]} 5. Nd2 {[%emt 0:00:16]} Ngf6 {[%emt 0:00:25]} 6. Bd3 {[%emt 0:00:03]} Be7 {[%emt 0:00:10]} 7. h4 {[%emt 0:01:07]} a6 {[%emt 0:01:35]} 8. g4 {[%emt 0:00:27]} c4 {[%emt 0:02:15]} 9. Bc2 {[%emt 0:00:39]} Nf8 {[%emt 0:01:28]} 10. g5 {[%emt 0:01:21]} N6d7 {[%emt 0:00:32]} 11. e4 {[%emt 0:01:44]} e5 {[%emt 0:03:24]} 12. Bg3 {[%emt 0:01:20]} exd4 {[%emt 0:00:41]} 13. cxd4 {[%emt 0:00:02]} Nb6 {[%emt 0:02:25]} 14. Qf3 {[%emt 0:01:30]} h6 {[%emt 0:01:46]} 15. gxh6 {[%emt 0:02:41]} Rxh6 {[%emt 0:00:10]} 16. Ne2 {[%emt 0:00:02]} Bxh4 {[%emt 0:00:47]} 17. O-O-O {[%emt 0:00:50]} Be6 {[%emt 0:00:24]} 18. Nf4 {[%emt 0:00:52]} Bxg3 {[%emt 0:00:38]} 19. fxg3 {[%emt 0:01:07]} Rxh1 {[%emt 0:00:04]} 20. Rxh1 {[%emt 0:00:07]} Qd7 {[%emt 0:00:02]} 21. exd5 {[%emt 0:00:11]} Nxd5 {[%emt 0:00:06]} 22. Nxe6 {[%emt 0:00:03]} fxe6 {[%emt 0:00:08]} 23. Rh8 {[%emt 0:00:33]} Nf6 {[%emt 0:00:09]} 24. g4 {[%emt 0:00:39]} Qxd4 {[%emt 0:00:27]} 25. Bg6+ {[%emt 0:00:02]} Ke7 {[%emt 0:00:11]} 26. Qxb7+ {[%emt 0:00:02]} N6d7 {[%emt 0:00:16]} 27. Qxa8 {[%emt 0:00:10]} Qg1+ {[%emt 0:00:16]} 28. Kc2 {[%emt 0:00:05]} Qxg4 {[%emt 0:00:08]} 29. Qe8+ {[%emt 0:00:15]} Kd6 {[%emt 0:00:04]} 30. Rxf8 {[%emt 0:00:04]} Kd5 {[%emt 0:00:23]} 1-0